bitfinex-derivatives/quotes_ETHF0:USTF0_20240910
["timestamp","ask_amount","ask_price","bid_price","bid_amount"]
[1725956592907,0.4551,2362.2,2362.1,4.86942037]
[1725956593106,0.86766,2362.5,2362.1,4.86942037]
[1725956593107,0.4444,2362.5,2362.4,0.42327]
[1725956593299,0.4444,2362.5,2362.4,3.06327]
[1725956593603,0.4444,2362.5,2362.4,7.29607]
[1725956594401,0.4444,2362.5,2362.4,0.42327]
[1725956596202,4.6772,2362.5,2361.8,1.05846]
[1725956596398,1.07783142,2362.4,2362.1,0.42332]
[1725956596598,1.07783142,2362.4,2361.8,2.8470858]
[1725956596599,0.4428,2362.4,2362.2,0.4233]
[1725956596902,0.86608,2362.4,2362.1,0.42331]
[1725956597302,0.4428,2362.4,2362.2,0.42331]
[1725956598311,0.21175086,2362.3,2362.2,0.42331]
[1725956598511,0.86608,2362.4,2362.1,0.42331]
[1725956598708,0.4624,2362.2,2362.1,0.42331]
[1725956598906,0.4624,2362.2,2362.0,0.42333]
[1725956599307,0.4624,2362.2,2362.1,0.42333]
[1725956599506,0.67415683,2362.2,2362.1,0.42333]
[1725956600408,0.4624,2362.2,2362.1,0.42333]
[1725956600606,0.4624,2362.2,2361.8,3.26571166]
[1725956600909,0.4624,2362.2,2362.1,0.42333]
[1725956601113,0.4624,2362.2,2362.0,0.42333]
[1725956601308,0.4624,2362.2,2362.0,0.42334]
[1725956602415,0.4624,2362.2,2362.1,0.42333]
[1725956603119,0.4428,2362.4,2362.3,0.42329]
[1725956603313,0.65453435,2362.4,2362.3,0.42329]
[1725956605619,2.67095992,2362.7,2362.5,0.42325]
[1725956605917,3.34937237,2362.6,2362.2,0.4233]
[1725956606113,2.83884237,2362.5,2362.2,0.4233]
[1725956606414,2.41557237,2362.4,2362.2,0.4233]
[1725956606804,0.21171245,2362.3,2362.0,2.64]
[1725956607015,0.6943475,2362.2,2362.1,0.42333]
[1725956607217,0.69434701,2362.2,2362.1,0.42333]
[1725956607517,0.69434696,2362.2,2362.1,4.65693]
[1725956607810,0.69434696,2362.2,2361.8,0.2070858]
[1725956607811,0.69434696,2362.2,2362.0,0.42334]
[1725956608006,0.9142,2362.1,2361.8,0.2070858]
[1725956608209,3.32982994,2362.1,2361.6,40.8]
[1725956608408,2.41562994,2362.0,2361.6,40.8]
[1725956608618,2.41562994,2362.0,2361.6,41.43227003]
[1725956608619,0.42336,2361.9,2361.6,41.43227003]
[1725956608821,2.41562994,2361.9,2361.7,0.4234]
[1725956609017,2.20385992,2362.0,2361.7,0.4234]
[1725956609214,2.83898944,2362.0,2361.7,0.4234]
[1725956609513,0.21177952,2361.9,2361.7,0.4234]
[1725956610813,2.20385992,2362.0,2361.6,0.20886003]
[1725956611011,2.41564624,2362.0,2361.7,0.42339]
[1725956611219,2.83899624,2362.0,2361.7,0.42339]
[1725956611522,0.63516632,2361.9,2361.6,0.42341]
[1725956611721,0.21178632,2361.8,2361.6,0.42341]
[1725956611915,0.4686,2361.7,2361.6,0.42341]
[1725956612114,0.9375,2361.7,2361.5,0.42342]
[1725956612418,0.4828,2361.6,2361.5,0.42342]
[1725956614219,1.58794046,2361.6,2361.5,0.42342]
[1725956614424,0.4828,2361.6,2361.5,0.42342]
[1725956615615,1.58794046,2361.6,2361.5,0.42342]
[1725956615826,0.42346,2361.4,2361.0,0.52165851]
[1725956616028,0.42346,2361.4,2361.1,0.4235]
[1725956616029,0.4963,2361.3,2361.1,0.4235]
[1725956616217,0.4498,2361.2,2360.9,0.42354]
[1725956616413,0.463,2361.1,2360.9,0.42354]
[1725956616618,1.10513379,2361.0,2360.9,0.42354]
[1725956617322,1.10524069,2361.0,2360.9,0.42354]
[1725956617524,0.463,2361.1,2360.8,0.21121898]
[1725956617727,1.60112053,2360.9,2360.8,0.63476898]
[1725956617914,1.60112053,2360.9,2360.7,9.65391982]
[1725956618111,0.4963,2360.9,2360.8,0.42356]
[1725956618318,0.4963,2360.9,2360.8,0.64043379]
[1725956618521,0.4963,2360.9,2360.8,0.42356]
[1725956619226,0.4963,2360.9,2360.8,0.63350823]
[1725956620021,5.83712053,2360.9,2360.6,0.42359]
[1725956620214,2.02467053,2360.9,2360.5,0.42361]
[1725956620417,1.10482053,2360.8,2360.6,0.42359]
[1725956620617,0.4512,2360.7,2360.2,3.3907694]
[1725956620834,0.488,2360.6,2360.5,0.42361]
[1725956621125,1.10482053,2360.9,2360.6,4.236]
[1725956621319,2.21100435,2361.2,2360.9,0.42354]
[1725956621320,1.59282053,2361.1,2360.9,0.42354]
[1725956621519,1.59282053,2361.1,2360.8,2.64]
[1725956621718,1.59282053,2361.1,2360.9,0.42353]
[1725956622032,1.10482053,2361.0,2360.8,0.42355]
[1725956622324,1.10482053,2361.0,2360.6,2.8991]
[1725956622521,1.59282053,2361.1,2360.8,0.42355]
[1725956622829,1.59282053,2361.1,2360.9,0.42353]
[1725956624238,1.59282053,2361.1,2360.8,0.42355]
[1725956625734,2.01633053,2361.1,2360.8,0.42355]
[1725956626031,1.59282053,2361.1,2360.8,0.42354]
[1725956628426,1.59282053,2361.1,2360.9,0.42354]
[1725956628622,1.59282053,2361.1,2360.8,0.42355]
[1725956629226,2.01633053,2361.1,2360.8,0.42355]
[1725956629428,1.59282053,2361.1,2360.8,0.42355]
[1725956629624,2.01633053,2361.1,2360.8,0.42355]
[1725956629829,1.59282053,2361.1,2360.9,0.42354]
[1725956630234,2.01633053,2361.1,2360.9,0.42354]
[1725956630629,1.10482053,2361.0,2360.9,0.42354]
[1725956630831,2.01633053,2361.1,2360.9,0.42354]
[1725956631532,0.42355,2360.9,2360.5,40.8]
[1725956631725,0.42355,2360.9,2360.4,0.09814851]
[1725956631726,0.496,2360.8,2360.6,0.42358]
[1725956631928,0.9986,2360.8,2360.7,0.42358]
[1725956633338,4.74342053,2360.8,2360.5,0.42361]
[1725956633533,4.74342053,2360.8,2360.2,1.05917]
[1725956633737,5.16699053,2360.8,2360.5,0.4236]
[1725956634747,1.52840053,2360.7,2360.5,0.4236]
[1725956634939,0.5283,2360.6,2360.4,0.42362]
[1725956635841,0.5283,2360.6,2360.2,41.00997291]
[1725956636044,0.5283,2360.6,2360.4,0.42362]
[1725956636745,0.5283,2360.6,2360.4,0.63073225]
[1725956637335,0.5283,2360.6,2360.4,0.20711225]
[1725956637646,0.5283,2360.6,2360.0,4.11528007]
[1725956637849,0.5283,2360.6,2360.3,0.42363]
[1725956639046,0.5283,2360.6,2360.4,0.42362]
[1725956639946,0.5283,2360.6,2360.2,2.64]
[1725956640150,0.5283,2360.6,2360.4,0.42362]
[1725956640540,0.5283,2360.6,2360.3,0.78354]
[1725956640743,0.9519,2360.6,2360.3,0.78354]
[1725956641244,0.5283,2360.6,2360.3,0.78354]
[1725956641953,0.5283,2360.6,2360.5,0.42361]
[1725956642149,0.5283,2360.6,2360.4,0.42362]
[1725956642351,0.5283,2360.6,2360.5,0.42361]
[1725956642650,0.5283,2360.6,2360.4,0.42362]
[1725956644849,0.5283,2360.6,2360.3,0.78353]
[1725956644850,0.9519,2360.6,2360.3,0.78353]
[1725956645155,0.5283,2360.6,2360.4,0.42363]
[1725956645354,0.5283,2360.6,2360.5,0.42361]
[1725956645958,0.5283,2360.6,2360.4,0.42362]
[1725956646846,0.5283,2360.6,2360.3,0.78354]
[1725956647361,0.5283,2360.6,2360.1,40.8]
[1725956647362,1.63312053,2360.6,2360.1,40.8]
[1725956647546,2.05673053,2360.6,2360.3,0.42364]
[1725956648049,2.05673053,2360.6,2360.2,0.42366]
[1725956648249,2.05673053,2360.6,2360.3,0.42365]
[1725956648545,2.05673053,2360.6,2360.1,40.8]
[1725956648546,1.52845053,2360.5,2360.1,40.8]
[1725956648747,1.10482053,2360.4,2360.2,0.42367]
[1725956648956,0.5174,2360.3,2360.2,0.42367]
[1725956649142,0.5174,2360.3,2360.1,41.22367]
[1725956649560,1.62222053,2360.3,2360.0,0.2148387]
[1725956649751,1.62222053,2360.3,2359.7,1.41939]
[1725956649952,2.04587053,2360.3,2360.0,0.42369]
[1725956650259,1.62222053,2360.3,2360.0,0.63166664]
[1725956650460,1.10482053,2360.2,2360.0,0.63166664]
[1725956650659,0.4813,2360.1,2360.0,0.63166664]
[1725956651151,0.4813,2360.1,2360.0,4.86846664]
[1725956652052,0.4813,2360.1,2360.0,0.63166664]
[1725956652851,0.4813,2360.1,2360.0,4.86846664]
[1725956653153,1.10482053,2360.2,2360.1,0.42368]
[1725956653358,2.38334206,2360.3,2360.1,0.42368]
[1725956653549,2.59505847,2360.3,2360.0,0.63167664]
[1725956653750,1.10468032,2360.1,2360.0,0.4237]
[1725956653957,1.10468032,2360.1,2360.0,0.63262409]
[1725956654357,2.17140847,2360.3,2360.1,0.42368]
[1725956654557,1.65600847,2360.2,2360.1,0.42368]
[1725956655062,1.65600847,2360.2,2360.1,0.63582548]
[1725956655252,1.65600847,2360.5,2360.1,11.50816548]
[1725956655450,1.10498093,2360.4,2360.3,1.48278]
[1725956655652,1.65600847,2360.5,2360.4,1.48271]
[1725956655653,1.10498093,2360.5,2360.4,1.48271]
[1725956655867,1.10498093,2360.5,2360.4,41.22363]
[1725956657449,1.10498093,2360.5,2360.4,45.46043]
[1725956657654,1.10498093,2360.5,2360.4,55.15951]
[1725956657854,0.21188837,2360.7,2360.4,55.15951]
[1725956657855,1.10498093,2360.7,2360.4,53.6768]
[1725956658070,1.10498093,2360.6,2360.5,4.65961]
[1725956658356,1.10498093,2360.6,2360.5,0.42361]
[1725956658562,1.10498093,2360.6,2360.5,10.65961]
[1725956658866,1.65600847,2360.7,2360.6,0.42359]
[1725956659058,1.65600847,2360.7,2360.6,4.65959]
[1725956659566,2.21100435,2360.8,2360.7,0.42358]
[1725956659761,2.42287733,2360.8,2360.7,0.42358]
[1725956660458,3.27068082,2360.9,2360.7,0.42358]
[1725956660654,2.4284607,2360.8,2360.7,0.42358]
[1725956661167,0.21187298,2360.8,2360.7,0.42358]
[1725956661661,0.21187298,2360.8,2360.6,0.42359]
[1725956661868,2.93261686,2360.7,2360.6,0.42359]
[1725956662262,2.93262238,2360.7,2360.6,0.42359]
[1725956662459,2.93262238,2360.7,2360.4,40.8]
[1725956662667,2.42852238,2360.6,2360.4,41.22362]
[1725956662966,2.42852238,2360.6,2360.1,0.21214548]
[1725956662967,2.64,2360.5,2360.1,0.21214548]
[1725956663166,2.21655117,2360.2,2360.1,0.42368]
[1725956663366,2.21655117,2360.2,2360.1,0.63373518]
[1725956663367,0.2118785,2360.2,2360.1,0.63373518]
[1725956663563,2.2163721,2360.2,2360.1,0.63373518]
[1725956663759,2.42827668,2360.2,2360.1,0.21005518]
[1725956664064,0.2118785,2360.2,2360.0,0.42369]
[1725956664270,2.21649982,2360.1,2360.0,0.42369]
[1725956664472,2.21649982,2360.1,2360.0,0.63834919]
[1725956664868,0.2118785,2360.1,2360.0,0.63834919]
[1725956665065,2.21649982,2360.2,2360.1,0.42368]
[1725956665275,2.42842632,2360.2,2360.1,0.42368]
[1725956666873,0.2119265,2360.2,2360.1,0.42368]
[1725956667081,2.42842632,2360.2,2360.1,0.42368]
[1725956667371,2.42842048,2360.2,2360.1,0.42368]
[1725956668078,0.21192066,2360.2,2360.0,0.21465919]
[1725956668268,2.42842048,2360.2,2359.8,40.8]
[1725956668576,2.42842048,2360.2,2360.1,0.42368]
[1725956668764,2.42842048,2360.2,2360.1,0.63071538]
[1725956669172,2.42842048,2360.2,2360.1,0.20703538]
[1725956669368,0.21192066,2360.2,2360.1,0.63071538]
[1725956669563,0.21192066,2360.2,2360.1,0.42368]
[1725956670175,0.21192066,2360.2,2360.1,0.63450856]
[1725956670470,2.2165366,2360.2,2360.1,0.63450856]
[1725956670672,2.42845726,2360.2,2360.1,0.63450856]
[1725956671174,0.21192066,2360.2,2360.1,0.63450856]
[1725956672171,2.57205105,2360.2,2360.1,0.63450856]
[1725956672366,2.57194708,2360.2,2360.1,0.63450856]
[1725956673469,2.57194708,2360.2,2360.1,0.21082856]
[1725956673870,2.57162721,2360.2,2360.1,0.21082856]
[1725956674371,2.57162721,2360.2,2360.1,0.63450856]
[1725956674576,0.21193828,2360.2,2360.1,0.63450856]
[1725956675567,2.57192797,2360.2,2360.1,0.63450856]
[1725956677381,5.32726707,2360.2,2360.1,0.63450856]
[1725956677570,5.32726707,2360.2,2360.1,0.21082856]
[1725956677971,5.32726707,2360.2,2360.1,0.42368]
[1725956678172,5.32726707,2360.2,2360.1,0.6398229]
[1725956678976,5.32726707,2360.2,2360.1,0.2161429]
[1725956679173,5.32726707,2360.2,2360.1,0.42368]
[1725956679776,5.32726707,2360.2,2360.1,0.63252723]
[1725956682082,2.57198625,2360.2,2360.1,0.63252723]
[1725956682271,3.25938082,2360.3,2360.1,0.63252723]
[1725956682474,5.35713905,2360.2,2360.1,0.42368]
[1725956682682,2.60185823,2360.2,2360.1,0.42368]
[1725956682881,5.35713905,2360.2,2360.1,0.42368]
[1725956683077,2.60185823,2360.2,2360.1,0.63494312]
[1725956683487,5.35713905,2360.2,2360.1,0.63494312]
[1725956683684,5.35713905,2360.2,2360.1,0.21126312]
[1725956683874,5.35713905,2360.2,2360.0,0.42369]
[1725956684184,5.35713905,2360.2,2360.1,0.6389908]
[1725956684381,5.35713905,2360.2,2360.1,0.42368]
[1725956685089,5.35713905,2360.2,2360.1,0.63407425]
[1725956686286,5.35713905,2360.2,2360.1,0.67857425]
[1725956687492,5.16001045,2360.2,2360.1,0.67857425]
[1725956687693,5.37195382,2360.2,2360.1,0.67857425]
[1725956691696,4.260343,2360.2,2360.1,0.0445]
[1725956694997,4.260343,2360.2,2360.1,0.46818]
[1725956695594,2.616673,2360.2,2360.1,0.46818]
[1725956695793,2.77082458,2360.2,2360.1,0.46818]
[1725956696100,2.616673,2360.2,2360.1,0.46818]
[1725956696297,5.38736011,2360.2,2360.1,0.46818]
[1725956696798,5.38732851,2360.2,2360.1,0.46818]
[1725956697694,5.38700105,2360.2,2360.1,0.46818]
[1725956698895,2.616673,2360.2,2360.1,0.46818]
[1725956699495,5.38700105,2360.2,2360.1,0.46818]
[1725956701204,5.36761081,2360.2,2360.1,0.46818]
[1725956701599,5.36605285,2360.2,2360.1,0.46818]
[1725956701796,2.59728276,2360.2,2360.1,0.46818]
[1725956701995,3.02095276,2360.2,2360.1,0.0445]
[1725956702601,4.24095276,2360.2,2360.1,0.0445]
[1725956703401,4.24095276,2360.2,2359.9,0.42371]
[1725956703402,8.47775276,2360.2,2359.7,0.09814851]
[1725956703604,3.98833168,2359.9,2359.8,0.42373]
[1725956703803,2.76833168,2359.9,2359.8,0.42373]
[1725956704100,5.36561444,2359.9,2359.8,0.42373]
[1725956704294,6.44441444,2359.9,2359.8,0.42373]
[1725956704494,3.67608276,2359.9,2359.8,0.42373]
[1725956707108,3.67608276,2359.9,2359.7,0.64020673]
[1725956707293,2.59728276,2359.8,2359.7,0.64020673]
[1725956707499,2.59728276,2359.8,2359.3,1.22]
[1725956707698,2.59728276,2359.8,2359.7,0.42376]
[1725956707999,2.59728276,2359.8,2359.6,0.21578693]
[1725956708302,2.77307915,2359.7,2359.6,0.63955693]
[1725956708495,2.77307915,2359.7,2359.6,1.28194391]
[1725956708696,5.15842493,2359.7,2359.6,1.28194391]
[1725956708893,5.15842493,2359.7,2359.6,15.67043196]
[1725956708894,0.21193698,2359.7,2359.6,15.67043196]
[1725956709097,2.21929957,2360.2,2360.1,1.05922]
[1725956709298,0.21995353,2360.3,2360.1,1.05922]
[1725956709299,2.21929957,2360.3,2360.2,0.42367]
[1725956709499,2.43119508,2360.3,2360.2,10.66047]
[1725956709699,1.5753,2360.6,2360.2,10.66047]
[1725956709700,1.43189551,2360.5,2360.2,42.46982912]
[1725956709901,1.5753,2360.6,2360.3,1.06589197]
[1725956709902,2.60073568,2360.4,2360.3,1.06589197]
[1725956710205,2.60073568,2360.4,2360.3,0.64224197]
[1725956710402,2.60073568,2360.4,2360.3,1.06588197]
[1725956710599,2.51352714,2360.4,2360.3,1.06588197]
[1725956711101,2.30161007,2360.4,2360.3,1.06588197]
[1725956711900,2.30161007,2360.4,2360.3,0.64224197]
[1725956713104,2.93715714,2360.4,2360.3,0.64224197]
[1725956713304,2.93715714,2360.4,2359.9,40.8]
[1725956713305,0.42366,2360.3,2359.9,40.8]
[1725956713495,3.01562714,2360.2,2360.0,1.06600227]
[1725956713699,5.66652714,2360.1,2359.6,0.20747846]
[1725956713903,2.51352714,2360.0,2359.7,0.64238019]
[1725956714107,2.51352714,2359.9,2359.8,1.06612019]
[1725956714407,2.30161007,2359.9,2359.8,1.06609451]
[1725956714603,2.30161007,2359.9,2359.8,5.30369451]
[1725956714800,2.30161007,2359.9,2359.8,4.87995451]
[1725956715509,2.30161007,2359.9,2359.8,5.30369451]
[1725956715710,2.30079195,2359.9,2359.8,5.30369451]
[1725956716115,2.30079195,2359.9,2359.8,4.87995451]
[1725956716303,2.30079195,2359.9,2359.8,0.64235451]
[1725956716614,2.30079195,2359.9,2359.7,0.42375]
[1725956716800,0.2119579,2359.8,2359.7,0.42375]
[1725956716997,2.51255107,2359.8,2359.7,1.04742767]
[1725956717209,2.51255107,2359.9,2359.7,1.04742767]
[1725956717401,0.42371,2360.0,2359.7,0.42375]
[1725956717402,3.04765107,2359.8,2359.7,0.42375]
[1725956717611,1.2441579,2359.8,2359.7,1.04742298]
[1725956717802,1.2441579,2359.8,2359.7,5.28502298]
[1725956718003,1.2441579,2359.8,2359.7,1.04742298]
[1725956719614,1.0322,2359.8,2359.7,0.62367298]
[1725956719808,3.33784383,2359.8,2359.7,0.62367298]
[1725956720013,3.54980173,2359.8,2359.6,0.63643035]
[1725956720207,2.42974434,2359.7,2359.6,0.63643035]
[1725956720408,2.42974434,2359.7,2359.6,1.26690725]
[1725956720603,2.42975749,2359.7,2359.6,5.50450725]
[1725956720808,0.21197105,2359.7,2359.6,5.50450725]
[1725956721002,2.21703415,2359.7,2359.6,5.50450725]
[1725956721319,2.4290052,2359.7,2359.6,5.50450725]
[1725956721612,0.21197105,2359.7,2359.6,1.26690725]
[1725956722300,0.21197105,2359.7,2359.3,0.43159978]
[1725956722504,2.42917865,2359.6,2359.5,0.42379]
[1725956722807,2.42917865,2359.6,2359.5,1.05428534]
[1725956723115,2.2172076,2359.6,2359.5,1.05428534]
[1725956723301,2.2172076,2359.6,2359.5,1.26636762]
[1725956723506,2.7085076,2359.6,2359.5,1.26636762]
[1725956723819,2.92047865,2359.6,2359.5,1.26636762]
[1725956724120,2.9200976,2359.6,2359.5,1.26636371]
[1725956725100,2.9200976,2359.6,2359.5,0.63587228]
[1725956725305,2.9200976,2359.6,2359.4,0.42381]
[1725956725515,2.42875202,2359.5,2359.4,0.42381]
[1725956725704,2.42876961,2359.5,2359.4,1.26259088]
[1725956726106,2.42876961,2359.5,2359.4,1.26259305]
[1725956726302,2.42876961,2359.5,2359.4,0.63207709]
[1725956726509,2.42876961,2359.5,2359.4,5.50099618]
[1725956726706,0.21198864,2359.5,2359.4,5.50099618]
[1725956726909,0.21198864,2359.5,2359.4,4.87047709]
[1725956727109,0.21198864,2359.5,2359.4,5.50097268]
[1725956727516,2.42876961,2359.5,2359.4,5.50097268]
[1725956727922,2.42876961,2359.5,2359.4,4.87047709]
[1725956728222,2.42876961,2359.5,2359.4,0.63207709]
[1725956728812,0.21198864,2359.5,2359.4,42.06258]
[1725956730614,2.70808097,2359.6,2359.5,0.42379]
[1725956730812,2.92006261,2359.6,2359.5,0.42379]
[1725956732514,0.70328164,2359.6,2359.5,0.42379]
[1725956732721,0.4913,2359.6,2359.5,0.42379]
[1725956733023,0.70328164,2359.6,2359.5,0.42379]
[1725956733215,2.80519849,2359.6,2359.5,0.42379]
[1725956733415,0.70328164,2359.6,2359.5,0.42379]
[1725956734321,0.4913,2359.6,2359.5,0.42379]
[1725956734521,1.92328164,2359.6,2358.9,2.17016797]
[1725956734821,3.43532794,2359.1,2359.0,0.42388]
[1725956735125,2.42730958,2359.1,2359.0,0.42388]
[1725956735317,2.21532794,2359.1,2359.0,1.64388]
[1725956735628,1.22,2359.4,2359.1,1.05964]
[1725956735629,2.21532794,2359.4,2359.1,1.05964]
[1725956735923,1.66111675,2359.3,2359.2,0.42385]
[1725956736124,1.43199516,2359.3,2359.1,0.42386]
[1725956736318,2.2145925,2359.2,2359.1,0.42386]
[1725956736520,2.42658766,2359.2,2359.1,0.42386]
[1725956736814,2.42658766,2359.2,2359.1,0.63635984]
[1725956738129,2.42658766,2359.2,2359.1,0.21249984]
[1725956738422,2.42658766,2359.2,2359.1,0.42386]
[1725956738624,2.42658766,2359.2,2359.1,0.63161124]
[1725956740423,2.42661808,2359.2,2358.9,0.42389]
[1725956740613,1.66008291,2359.0,2358.8,0.63563667]
[1725956740812,1.66008291,2358.9,2358.8,0.63565667]
[1725956741012,1.66008291,2358.9,2358.8,0.42392]
[1725956741621,1.66008291,2358.9,2358.8,0.63258372]
[1725956742012,2.88008291,2358.9,2358.7,0.42393]
[1725956742216,1.66008291,2358.8,2358.7,0.42394]
[1725956742728,1.87214105,2358.8,2358.7,0.42394]
[1725956742920,1.10605114,2358.8,2358.7,5.88314]
[1725956744529,1.10605114,2358.9,2358.8,1.48372]
[1725956744718,1.66008291,2359.0,2358.9,0.4239]
[1725956744719,1.10605114,2359.0,2358.9,0.4239]
[1725956745318,1.10605114,2359.0,2358.9,1.6439]
[1725956747233,1.10605114,2359.0,2358.9,0.4239]
[1725956748029,3.14168291,2359.1,2359.0,0.42388]
[1725956748220,3.35371605,2359.1,2359.0,0.42388]
[1725956748420,3.14168291,2359.1,2359.0,0.42388]
[1725956748618,3.14168291,2359.1,2359.0,1.64388]
[1725956749027,2.58699349,2359.1,2359.0,1.64388]
[1725956749627,1.4816,2359.1,2359.0,1.64388]
[1725956749830,2.58696249,2359.1,2359.0,1.64388]
[1725956750030,1.4816,2359.1,2359.0,1.64388]
[1725956750233,0.5045,2359.1,2359.0,5.88308]
[1725956750530,1.60984512,2359.1,2359.0,5.88308]
[1725956752331,1.10534512,2359.1,2359.0,5.88308]
[1725956752534,1.66008291,2359.3,2359.2,0.42385]
[1725956752731,1.87209066,2359.3,2359.2,1.64385]
[1725956752938,1.66008291,2359.3,2359.2,1.64385]
[1725956753231,3.14248291,2359.4,2359.2,1.64385]
[1725956753431,1.4824,2359.4,2359.3,0.42383]
[1725956753734,4.9169925,2359.4,2358.9,0.4239]
[1725956753930,4.9169925,2359.4,2358.8,0.43149233]
[1725956753931,1.10528,2359.1,2359.0,0.42388]
[1725956754740,1.65792,2359.2,2359.1,0.42386]
[1725956755229,0.21202634,2359.2,2359.1,0.42386]
[1725956755434,2.2145925,2359.3,2359.1,0.42386]
[1725956755634,2.42661917,2359.3,2359.1,0.42386]
[1725956756032,2.2145925,2359.2,2359.1,0.42386]
[1725956757637,2.42661917,2359.2,2359.1,0.42386]
[1725956758441,0.21202667,2359.2,2359.1,0.42386]
[1725956759735,2.7700414,2359.2,2359.1,0.42386]
[1725956759931,2.7700414,2359.2,2358.8,3.08149233]
[1725956759932,0.21202168,2359.2,2358.9,0.42389]
[1725956760128,1.66066153,2359.0,2358.9,0.42389]
[1725956760534,0.73793283,2359.0,2358.9,0.42389]
[1725956760827,1.0426,2359.0,2358.9,0.42389]
[1725956761042,1.25463283,2359.0,2358.9,0.42389]
[1725956761431,3.25681538,2359.0,2358.9,0.42389]
[1725956761635,3.46884821,2359.0,2358.9,0.42389]
[1725956765743,1.25463283,2359.0,2358.9,0.42389]
[1725956766533,6.09343751,2359.0,2358.9,0.42389]
[1725956766744,6.30547034,2359.0,2358.9,0.42389]
[1725956766945,3.53530247,2359.0,2358.9,0.42389]
[1725956767640,6.30566342,2359.0,2358.9,0.42389]
[1725956767847,1.25463283,2359.0,2358.9,0.42389]
[1725956768039,3.25776047,2359.0,2358.9,1.48365]
[1725956768243,3.4697933,2359.0,2358.9,8.37285]
[1725956768544,1.25463283,2359.0,2358.9,1.48365]
[1725956769245,1.25463283,2359.0,2358.9,2.13519158]
[1725956770648,3.4697933,2359.0,2358.9,0.42389]
[1725956770940,3.4697933,2359.0,2358.9,1.07542136]
[1725956771144,3.4697933,2359.0,2358.9,0.42389]
[1725956771334,3.4697933,2359.0,2358.9,1.0754418]
[1725956774138,3.4697933,2359.0,2358.9,0.42389]
[1725956774334,3.4697933,2359.0,2358.9,1.08053043]
[1725956774845,6.31167137,2359.0,2358.9,0.42389]
[1725956775538,6.31167137,2359.0,2358.9,1.08054414]
[1725956775741,6.31167137,2359.0,2358.9,1.08054417]
[1725956775946,3.54207567,2359.0,2358.9,1.08054417]
[1725956776245,6.31216611,2359.0,2358.9,1.08054417]
[1725956776948,6.31216611,2359.0,2358.9,0.42389]
[1725956777247,6.31216611,2359.0,2358.9,1.08055187]
[1725956777444,3.54212471,2359.0,2358.9,0.65666187]
[1725956777647,3.54212471,2359.0,2358.8,0.42391]
[1725956777843,5.27244312,2358.9,2358.8,0.42391]
[1725956778040,5.27244312,2358.9,2358.8,1.08059779]
[1725956778248,0.21203283,2358.9,2358.8,1.08059779]
[1725956778451,1.0426,2359.0,2358.9,0.4239]
[1725956778637,4.02795681,2359.0,2358.9,2.14034779]
[1725956778945,6.31686088,2359.0,2358.9,1.08058779]
[1725956779338,6.31686088,2359.0,2358.9,2.14074387]
[1725956779745,3.54353528,2359.0,2358.9,1.08058779]
[1725956780149,3.54353528,2359.0,2358.9,2.14075409]
[1725956780454,1.0426,2359.0,2358.9,2.14075409]
[1725956780755,1.0426,2359.0,2358.9,3.20051409]
[1725956780756,3.54353528,2359.0,2358.9,3.20051409]
[1725956781051,3.8176203,2359.0,2358.9,2.14075409]
[1725956781244,6.31858595,2359.0,2358.9,0.4239]
[1725956781436,3.54353528,2359.0,2358.9,0.4239]
[1725956781644,3.54353528,2359.0,2358.9,2.14658746]
[1725956782242,3.54353528,2359.0,2358.9,6.38578746]
[1725956784350,3.01763528,2359.0,2358.9,8.66554746]
[1725956784539,5.79316195,2359.0,2358.9,9.99065133]
[1725956784736,5.79316195,2359.0,2358.9,6.94286]
[1725956784935,5.79316195,2359.0,2358.9,9.99061729]
[1725956785155,5.79316195,2359.0,2358.9,10.03511357]
[1725956785648,5.79316195,2359.0,2358.9,10.03513975]
[1725956786150,5.27646195,2359.0,2358.9,10.03513975]
[1725956787846,5.27646195,2359.0,2358.9,7.65024542]
[1725956788150,5.27646195,2359.0,2358.9,8.97536706]
[1725956788950,5.30449549,2359.0,2358.9,8.97536706]
[1725956790146,5.30449549,2359.0,2358.9,10.03512706]
[1725956790744,5.30449549,2359.0,2358.9,8.81512706]
[1725956792548,2.43420503,2359.0,2358.9,11.14556503]
[1725956792750,0.70651817,2359.0,2358.9,8.81512706]
[1725956794050,0.70650882,2359.0,2358.9,8.81512706]
[1725956797647,0.70650882,2359.0,2358.9,8.81508494]
[1725956798256,0.70650882,2359.0,2358.9,5.76736]
[1725956798449,0.4945,2359.0,2358.9,7.75497682]
[1725956798757,0.4945,2359.0,2358.9,8.81503912]
[1725956798758,0.70650882,2359.0,2358.9,8.81503912]
[1725956799056,0.70651273,2359.0,2358.9,8.81503912]
[1725956799255,2.71647692,2359.0,2358.9,8.81503912]
[1725956799455,2.92848965,2359.0,2358.9,8.81503912]
[1725956799651,0.70651273,2359.0,2358.9,8.81503912]
[1725956800256,2.71668127,2359.0,2358.9,10.03503912]
[1725956800458,2.928694,2359.0,2358.9,10.03503912]
[1725956800652,2.92856876,2359.0,2358.9,10.03503912]
[1725956800854,2.43406876,2359.0,2358.9,10.03503912]
[1725956801246,2.22205603,2359.0,2358.9,10.03503912]
[1725956801547,2.22205603,2359.0,2358.9,11.09479912]
[1725956801751,2.43406876,2359.0,2358.9,17.09479912]
[1725956801958,1.41619789,2359.1,2359.0,6.7825]
[1725956802255,1.6666365,2359.1,2359.0,3.66200541]
[1725956802451,1.11085943,2359.1,2359.0,18.61409323]
[1725956802654,1.87826751,2359.2,2359.1,1.48353]
[1725956802848,2.91869789,2359.3,2359.2,0.42385]
[1725956803055,3.13067678,2359.3,2359.2,4.69108087]
[1725956803255,3.13067678,2359.3,2359.2,8.92948087]
[1725956804951,3.13067678,2359.3,2359.2,4.69108087]
[1725956805362,1.71447889,2359.3,2359.2,4.6910558]
[1725956806264,3.16745145,2359.3,2359.2,3.36619788]
[1725956806467,3.37943034,2359.3,2359.2,3.36619788]
[1725956806762,3.37943034,2359.3,2359.2,1.64385]
[1725956806763,1.71447889,2359.3,2359.2,1.64385]
[1725956807153,1.71447889,2359.3,2359.2,2.30628621]
[1725956807456,3.16731266,2359.3,2359.2,2.30628621]
[1725956807657,3.37929155,2359.3,2359.2,2.30628621]
[1725956807860,3.3792917,2359.3,2359.2,3.36618415]
[1725956808759,3.16731266,2359.3,2359.2,3.36618415]
[1725956808957,3.16731266,2359.3,2359.2,4.69101784]
[1725956809161,3.37928583,2359.3,2359.2,4.69101784]
[1725956809457,3.16731266,2359.3,2359.2,3.36618415]
[1725956809652,3.3792888,2359.3,2359.2,3.78240061]